bitfinex/quotes_BTCUSD_20241002
["timestamp","ask_amount","ask_price","bid_price","bid_amount"]
[1727890125594,0.22727866,61780.0,61779.0,0.16400571]
[1727890125595,0.06541466,61780.0,61779.0,0.16400571]
[1727890125847,0.06541466,61780.0,61779.0,0.61337965]
[1727890125848,0.002638,61780.0,61779.0,0.61337965]
[1727890126064,0.002638,61780.0,61779.0,0.71067965]
[1727890126287,0.002638,61780.0,61779.0,0.79067965]
[1727890126746,0.001638,61780.0,61779.0,1.03570286]
[1727890127002,0.001638,61780.0,61779.0,0.79267965]
[1727890127234,0.001638,61780.0,61779.0,0.80167965]
[1727890127482,0.001638,61780.0,61779.0,0.80879952]
[1727890127928,0.001638,61780.0,61779.0,0.79679952]
[1727890128152,0.001638,61780.0,61779.0,0.81967965]
[1727890128581,0.24302321,61797.0,61788.0,0.261843]
[1727890128790,0.24302321,61797.0,61788.0,0.71260135]
[1727890129023,0.24302321,61797.0,61788.0,0.74057237]
[1727890129254,0.24302321,61797.0,61788.0,0.61953665]
[1727890129697,0.24302321,61797.0,61788.0,0.71943665]
[1727890130564,0.24302321,61797.0,61788.0,0.73343665]
[1727890131028,0.24302321,61797.0,61788.0,0.74743665]
[1727890132600,0.00164,61804.0,61803.0,0.340404]
[1727890132822,0.00164,61804.0,61803.0,0.69109765]
[1727890133045,0.00164,61804.0,61803.0,0.69209765]
[1727890133959,0.00164,61804.0,61803.0,0.69609765]
[1727890134189,0.00164,61804.0,61803.0,0.70609765]
[1727890134416,0.00164,61804.0,61803.0,0.77862578]
[1727890134646,0.00164,61804.0,61803.0,0.80280183]
[1727890134902,0.00164,61804.0,61803.0,0.79380183]
[1727890135135,0.00164,61804.0,61803.0,0.79880183]
[1727890135360,0.00164,61807.0,61806.0,0.007]
[1727890135587,0.24384321,61816.0,61815.0,0.262773]
[1727890135807,0.24384321,61816.0,61815.0,0.42595971]
[1727890136235,0.00082,61816.0,61815.0,0.42595971]
[1727890137601,0.00082,61816.0,61815.0,0.43995971]
[1727890137827,0.00082,61816.0,61815.0,0.45395971]
[1727890138048,0.00082,61816.0,61815.0,0.53275971]
[1727890140746,0.00082,61816.0,61815.0,0.53175971]
[1727890140968,0.00082,61816.0,61815.0,0.45295971]
[1727890142183,0.00082,61816.0,61815.0,0.29118671]
[1727890142410,0.00082,61816.0,61815.0,0.27718671]
[1727890142630,0.00082,61816.0,61815.0,0.29018671]
[1727890143069,0.00082,61816.0,61815.0,0.26318671]
[1727890143301,0.00082,61816.0,61815.0,0.27718671]
[1727890143534,0.00082,61816.0,61815.0,0.26818671]
[1727890143832,0.16259,61816.0,61815.0,0.105]
[1727890144017,0.00082,61816.0,61815.0,0.014]
[1727890144453,0.00082,61816.0,61815.0,0.026]
[1727890145753,0.16259,61816.0,61815.0,0.026]
[1727890145962,0.00082,61816.0,61815.0,0.026]
[1727890146666,0.16259,61816.0,61815.0,0.026]
[1727890146888,0.00082,61816.0,61815.0,0.026]
[1727890148007,0.16259,61816.0,61815.0,0.026]
[1727890149120,0.00082,61816.0,61815.0,0.026]
[1727890149372,0.16259,61816.0,61815.0,0.026]
[1727890152555,0.00082,61816.0,61815.0,0.026]
[1727890153033,0.16259,61816.0,61815.0,0.026]
[1727890153513,0.01836959,61816.0,61815.0,0.026]
[1727890153997,0.18013959,61816.0,61815.0,0.026]
[1727890154263,0.01836959,61816.0,61815.0,0.026]
[1727890154492,0.01836959,61816.0,61815.0,0.03399402]
[1727890154940,0.01836959,61816.0,61815.0,0.19718073]
[1727890155167,0.04752555,61816.0,61815.0,0.46128792]
[1727890155385,0.00082,61816.0,61815.0,0.46128792]
[1727890155608,0.00082,61816.0,61815.0,0.45895373]
[1727890157704,0.00082,61816.0,61815.0,0.46395373]
[1727890158864,0.01884356,61816.0,61815.0,0.46395373]
[1727890159086,0.00082,61816.0,61815.0,0.46395373]
[1727890159325,0.00082,61816.0,61815.0,0.45895373]
[1727890159555,0.01846671,61816.0,61815.0,0.45895373]
[1727890159772,0.04732321,61816.0,61815.0,0.45895373]
[1727890159991,0.01846671,61816.0,61815.0,0.45895373]
[1727890160212,0.03650227,61816.0,61815.0,0.45895373]
[1727890160429,0.01885881,61816.0,61815.0,0.45895373]
[1727890162494,0.0365559,61816.0,61815.0,0.45895373]
[1727890163152,0.09376997,61816.0,61815.0,0.46317011]
[1727890163627,0.1018746,61816.0,61815.0,0.46317011]
[1727890164519,0.09376997,61816.0,61815.0,0.46317011]
[1727890165259,0.06542786,61816.0,61815.0,0.46317011]
[1727890165524,0.16259,61816.0,61815.0,0.03399402]
[1727890165788,0.16259,61816.0,61815.0,0.19718073]
[1727890165789,0.06395334,61816.0,61815.0,0.19718073]
[1727890166009,0.06395334,61816.0,61815.0,0.45095971]
[1727890166010,0.0467582,61816.0,61815.0,0.45095971]
[1727890166234,0.07561401,61816.0,61815.0,0.45895373]
[1727890166469,0.07572387,61816.0,61815.0,0.44695373]
[1727890166683,0.04734472,61816.0,61815.0,0.43795373]
[1727890166896,0.01848891,61816.0,61815.0,0.43795373]
[1727890167170,0.01848891,61816.0,61815.0,0.44595373]
[1727890167391,0.01848891,61816.0,61815.0,0.43795373]
[1727890167619,0.01885488,61816.0,61815.0,0.44395373]
[1727890167840,0.01885488,61816.0,61815.0,0.49709127]
[1727890168062,0.00082,61816.0,61815.0,0.44895373]
[1727890168281,0.00082,61816.0,61815.0,0.52116005]
[1727890168502,0.01888961,61816.0,61815.0,0.51516005]
[1727890168959,0.00082,61816.0,61815.0,0.51016005]
[1727890169185,0.00082,61816.0,61815.0,0.51427403]
[1727890169410,0.00082,61816.0,61815.0,0.5433428]
[1727890169633,0.00082,61816.0,61815.0,0.44706771]
[1727890169855,0.00082,61816.0,61815.0,0.44806771]
[1727890170069,0.00082,61816.0,61815.0,0.45506771]
[1727890170946,0.00082,61816.0,61815.0,0.46906771]
[1727890171408,0.00082,61816.0,61815.0,0.61348035]
[1727890172306,0.00082,61816.0,61815.0,0.46906771]
[1727890174721,0.00082,61816.0,61815.0,0.36673237]
[1727890174943,0.04691931,61816.0,61815.0,0.36673237]
[1727890175598,0.00082,61816.0,61815.0,0.36673237]
[1727890175812,0.01807528,61816.0,61815.0,0.36673237]
[1727890176033,0.00082,61816.0,61815.0,0.46673237]
[1727890176256,0.02973257,61816.0,61815.0,0.46673237]
[1727890176461,0.00082,61816.0,61815.0,0.46673237]
[1727890178646,0.04675013,61816.0,61815.0,0.46673237]
[1727890178871,0.02974702,61816.0,61815.0,0.46673237]
[1727890179083,0.00082,61816.0,61815.0,0.46673237]
[1727890179515,0.00082,61816.0,61815.0,0.30495937]
[1727890179735,0.04678488,61816.0,61815.0,0.46673237]
[1727890180244,0.04678488,61816.0,61815.0,0.58796818]
[1727890180460,0.01782973,61816.0,61815.0,0.58796818]
[1727890180677,0.01782973,61816.0,61815.0,0.57396818]
[1727890180888,0.00082,61816.0,61815.0,0.45873237]
[1727890181734,0.00082,61816.0,61815.0,0.44573237]
[1727890181949,0.01781629,61816.0,61815.0,0.45573237]
[1727890182379,0.00082,61816.0,61815.0,0.43973237]
[1727890182587,0.01780342,61816.0,61815.0,0.43973237]
[1727890182803,0.00082,61816.0,61815.0,0.44673237]
[1727890183231,0.00082,61816.0,61815.0,0.45573237]
[1727890183232,0.01780371,61816.0,61815.0,0.45573237]
[1727890183650,0.04673711,61816.0,61815.0,0.45573237]
[1727890184301,0.04673711,61816.0,61815.0,0.57698106]
[1727890185529,0.01781146,61816.0,61815.0,0.57698106]
[1727890185769,0.04675105,61816.0,61815.0,0.57698106]
[1727890187647,0.04675105,61816.0,61815.0,0.57702232]
[1727890187857,0.04675105,61816.0,61815.0,0.45573237]
[1727890188488,0.02975959,61816.0,61815.0,0.45573237]
[1727890188700,0.01780215,61816.0,61815.0,0.45573237]
[1727890188927,0.04673567,61816.0,61815.0,0.45573237]
[1727890189586,0.04673567,61816.0,61815.0,0.64323931]
[1727890189804,0.00082,61816.0,61815.0,0.52850746]
[1727890190695,0.04651509,61816.0,61815.0,0.52850746]
[1727890192008,0.00082,61816.0,61815.0,0.52850746]
[1727890192227,0.00082,61816.0,61815.0,0.45573237]
[1727890192440,0.00082,61816.0,61815.0,0.5285214]
[1727890195627,0.24339,61816.0,61815.0,0.09946917]
[1727890195889,0.2890385,61816.0,61815.0,0.07519974]
[1727890196106,0.29714266,61816.0,61815.0,0.02665868]
[1727890197037,0.32250199,61816.0,61815.0,0.02665868]
[1727890197885,0.29714266,61816.0,61815.0,0.02665868]
[1727890198350,0.28043161,61816.0,61815.0,0.02665868]
[1727890198564,0.26004272,61816.0,61815.0,0.02665868]
[1727890198777,0.26814791,61816.0,61815.0,0.02665868]
[1727890199456,0.25149519,61816.0,61815.0,0.016]
[1727890199693,0.6150184,61816.0,61815.0,0.016]
[1727890199878,0.37199519,61816.0,61815.0,0.02665869]
[1727890200094,0.37199519,61816.0,61815.0,0.016]
[1727890200582,0.37199519,61816.0,61809.0,0.04854106]
[1727890200583,0.353186,61810.0,61809.0,0.04854106]
[1727890200857,0.353186,61810.0,61804.0,0.09705204]
[1727890200858,0.0982,61808.0,61804.0,0.09705204]
[1727890201073,0.51108494,61809.0,61793.0,0.24302321]
[1727890201074,0.260009,61801.0,61800.0,0.09705204]
[1727890201296,0.260914,61799.0,61798.0,0.09705204]
[1727890201772,0.161817,61798.0,61797.0,0.12131505]
[1727890202008,0.16182,61797.0,61796.0,0.12131505]
[1727890202241,0.17840423,61797.0,61796.0,0.12131505]
[1727890202459,0.161822,61796.0,61795.0,0.12131505]
[1727890203374,0.161825,61795.0,61794.0,0.12131505]
[1727890204045,0.161828,61794.0,61793.0,0.09703602]
[1727890204262,0.323655,61795.0,61792.0,0.09703602]
[1727890204482,0.16183,61793.0,61792.0,0.09703602]
[1727890204711,0.161841,61789.0,61788.0,0.09703602]
[1727890204936,0.03110952,61789.0,61786.0,0.09701324]
[1727890205160,0.184848,61786.0,61785.0,0.09701324]
[1727890205381,0.184854,61784.0,61783.0,0.09701324]
[1727890205890,0.184864,61780.0,61779.0,0.12208555]
[1727890206111,0.184864,61780.0,61779.0,0.000819]
[1727890207208,0.189864,61780.0,61779.0,0.001819]
[1727890207849,0.22124127,61780.0,61779.0,0.002819]
[1727890208070,0.03637727,61780.0,61779.0,0.002819]
[1727890208288,0.19824127,61780.0,61779.0,0.002819]
[1727890208533,0.03637727,61780.0,61779.0,0.002819]
[1727890208761,0.03637727,61780.0,61779.0,0.164686]
[1727890208980,0.03637727,61780.0,61779.0,0.32787271]
[1727890209198,0.03137727,61780.0,61779.0,0.44813926]
[1727890209479,0.03137727,61780.0,61779.0,0.32987271]
[1727890209708,0.03137727,61780.0,61779.0,0.45113926]
[1727890209927,0.03137727,61780.0,61779.0,0.43107583]
[1727890210146,0.03137727,61780.0,61779.0,0.43807583]
[1727890210374,0.007,61780.0,61779.0,0.52027583]
[1727890210591,0.001,61780.0,61779.0,0.51227583]
[1727890210817,0.001,61780.0,61779.0,0.6607957]
[1727890211305,0.001,61780.0,61779.0,0.6597957]
[1727890211536,0.002,61780.0,61779.0,0.6687957]
[1727890212040,0.003,61780.0,61779.0,0.6787957]
[1727890212259,0.003,61780.0,61779.0,0.53327583]
[1727890212996,0.003,61780.0,61779.0,0.53827583]
[1727890214154,0.002,61780.0,61779.0,0.58348257]
[1727890214379,0.003,61780.0,61779.0,0.59748257]
[1727890214833,0.002,61780.0,61779.0,0.58348257]
[1727890215074,0.002,61780.0,61779.0,0.52927583]
[1727890215272,0.003,61780.0,61779.0,0.54327583]
[1727890215486,0.001,61780.0,61779.0,0.53327583]
[1727890215706,0.001,61780.0,61779.0,0.59949151]
[1727890215939,0.001,61780.0,61779.0,0.62665834]
[1727890216172,0.001,61780.0,61779.0,0.34607583]
[1727890216427,0.001,61780.0,61779.0,0.36007583]
[1727890216649,0.24302321,61786.0,61785.0,0.161851]
[1727890216864,0.24302321,61786.0,61785.0,0.32503771]
[1727890217083,0.02537087,61791.0,61788.0,0.161842]
[1727890217333,0.02537087,61791.0,61790.0,0.09679027]
[1727890218235,0.02537087,61791.0,61789.0,0.13096118]
[1727890218703,0.161838,61790.0,61789.0,0.00997334]
[1727890218920,0.02537087,61791.0,61789.0,0.00997334]
[1727890219132,0.02537087,61791.0,61790.0,0.25863323]
[1727890219640,0.18720587,61791.0,61790.0,0.09679523]
[1727890219925,0.161838,61790.0,61789.0,0.13096606]
[1727890220166,0.161838,61790.0,61789.0,0.12399272]
[1727890220400,0.161838,61790.0,61789.0,0.12150623]
[1727890220643,0.161838,61790.0,61789.0,0.12050623]
[1727890221627,0.161842,61789.0,61785.0,0.161851]
[1727890221905,0.02537087,61791.0,61786.0,0.323696]
[1727890222170,0.02537087,61791.0,61790.0,0.09681235]
[1727890222438,0.02537087,61791.0,61790.0,0.161838]
[1727890222730,0.02537087,61791.0,61790.0,0.2344502]
[1727890222933,0.02537087,61791.0,61789.0,0.003]
[1727890223161,0.02537087,61791.0,61790.0,0.2586518]
[1727890223391,0.02537087,61791.0,61790.0,0.0988153]
[1727890223623,0.21020587,61791.0,61790.0,0.002]
[1727890223852,0.39160587,61791.0,61790.0,0.07461663]
[1727890224074,0.366235,61791.0,61790.0,0.002]
[1727890224324,0.023,61787.0,61786.0,0.04841381]
[1727890224593,0.184846,61787.0,61786.0,0.04841381]
[1727890224945,0.184846,61787.0,61783.0,0.0968153]
[1727890224946,0.184854,61784.0,61783.0,0.04841381]
[1727890225201,0.184856,61783.0,61782.0,0.04841381]
[1727890225467,0.0821,61781.0,61778.0,0.07262026]
[1727890225685,0.18750694,61785.0,61766.0,0.24302321]
[1727890225686,0.266998,61767.0,61766.0,0.24302321]
[1727890225918,0.45450494,61767.0,61766.0,0.24302321]
[1727890226163,0.161911,61762.0,61761.0,0.00082]
[1727890226383,0.37241794,61762.0,61761.0,0.00082]
[1727890227459,0.37241794,61762.0,61761.0,0.12181261]
[1727890227678,0.37241794,61762.0,61761.0,0.00182]
[1727890228818,0.39780108,61762.0,61761.0,0.00382]
[1727890229477,0.41472325,61762.0,61761.0,0.00382]
[1727890230414,0.41472325,61762.0,61761.0,0.00333325]
[1727890231351,0.41472325,61762.0,61754.0,0.000819]
[1727890231352,0.26303,61755.0,61754.0,0.000819]
[1727890231589,0.45053694,61755.0,61754.0,0.000819]
[1727890231822,0.161953,61746.0,61745.0,0.000818]
[1727890232050,0.49125398,61746.0,61745.0,0.000818]
[1727890232277,0.161959,61744.0,61743.0,0.00082]
[1727890232501,0.19994854,61744.0,61743.0,0.00082]
[1727890232738,0.20806259,61744.0,61743.0,0.00082]
[1727890232958,0.22591534,61744.0,61743.0,0.00082]
[1727890233419,0.25130867,61744.0,61743.0,0.00082]
[1727890233642,0.22591534,61744.0,61743.0,0.00082]
[1727890233863,0.27488326,61744.0,61743.0,0.00082]
[1727890234579,0.24891646,61744.0,61743.0,0.00082]
[1727890234802,0.27477962,61744.0,61743.0,0.00082]
[1727890235490,0.2288117,61744.0,61743.0,0.00082]
[1727890235965,0.2328117,61744.0,61743.0,0.00082]
[1727890236423,0.25864532,61744.0,61743.0,0.00082]
[1727890236639,0.28403879,61744.0,61743.0,0.00082]
[1727890236856,0.27590938,61744.0,61743.0,0.00082]
[1727890239380,0.25820517,61744.0,61743.0,0.00082]
[1727890240474,0.25820517,61744.0,61743.0,0.00033305]
[1727890240917,0.20694854,61744.0,61743.0,0.00033305]
[1727890242505,0.20694854,61744.0,61742.0,0.00025205]
[1727890242506,0.184961,61743.0,61742.0,0.00025205]
[1727890242717,0.20001612,61743.0,61742.0,0.00025205]
[1727890243118,0.20001612,61743.0,61742.0,5.205e-05]
[1727890243327,0.161985,61734.0,61733.0,0.00057105]
[1727890243541,0.161985,61734.0,61733.0,0.00047105]
[1727890243757,0.161985,61734.0,61733.0,0.00037105]
[1727890243983,0.161985,61734.0,61733.0,0.00017105]
[1727890243984,0.22668023,61734.0,61733.0,0.00017105]
[1727890244212,0.37249394,61733.0,61732.0,0.00039105]
[1727890244486,0.38886087,61733.0,61732.0,0.00029105]
[1727890244698,0.4313833,61733.0,61732.0,0.00019105]
[1727890244915,0.24379604,61733.0,61728.0,0.00071005]
[1727890245052,0.37250494,61729.0,61728.0,0.00021005]
[1727890245259,0.38946231,61729.0,61728.0,0.00021005]
[1727890245464,0.38946231,61729.0,61728.0,0.00011005]
[1727890245667,0.185001,61728.0,61727.0,0.00063005]
[1727890245874,0.20202398,61728.0,61727.0,0.00013005]
[1727890246078,0.20202398,61728.0,61727.0,3.005e-05]
[1727890246496,0.162014,61723.0,61721.0,3.005e-05]
[1727890246710,0.0176519,61722.0,61717.0,0.000819]
[1727890247334,0.0176519,61721.0,61717.0,0.000819]
[1727890247538,0.1796719,61721.0,61717.0,0.000819]
[1727890247940,0.185027,61718.0,61717.0,0.000819]
[1727890248343,0.2026789,61718.0,61717.0,0.000819]
[1727890248972,0.0176519,61718.0,61717.0,0.000819]
[1727890249367,0.1796789,61718.0,61717.0,0.001819]
[1727890250240,0.2026789,61718.0,61717.0,0.001819]
[1727890250446,0.20342803,61718.0,61717.0,0.00133191]
[1727890250646,0.22107175,61718.0,61717.0,0.00133191]
[1727890251710,0.22107175,61718.0,61717.0,0.00033191]
[1727890252104,0.23007175,61718.0,61717.0,0.00133191]
[1727890252510,0.23807175,61718.0,61717.0,0.00233191]
[1727890255434,0.23807175,61718.0,61704.0,0.0164738]
[1727890255435,0.185061,61705.0,61704.0,0.0164738]
[1727890255642,0.41031951,61705.0,61704.0,0.0164738]
[1727890256523,0.41031951,61705.0,61704.0,0.0204738]
[1727890256729,0.41931951,61705.0,61704.0,0.0214738]
[1727890256936,0.44472842,61705.0,61704.0,0.0214738]
[1727890257748,0.43572842,61705.0,61704.0,0.0164738]
[1727890257961,0.44972842,61705.0,61704.0,0.0174738]
[1727890258163,0.46372842,61705.0,61704.0,0.0184738]
[1727890258567,0.44972842,61705.0,61704.0,0.0174738]
[1727890258820,0.46372842,61705.0,61704.0,0.0184738]
[1727890259650,0.4460847,61705.0,61704.0,0.0184738]
[1727890260006,0.46373778,61705.0,61704.0,0.0184738]
[1727890260219,0.48065995,61705.0,61704.0,0.0184738]
[1727890260437,0.48065995,61705.0,61704.0,0.0192938]
[1727890260639,0.46300687,61705.0,61704.0,0.0192938]
[1727890262360,0.43500687,61705.0,61704.0,0.0172938]
[1727890262786,0.46200687,61705.0,61704.0,0.0182938]
[1727890262995,0.44800687,61705.0,61704.0,0.0172938]
[1727890263219,0.21739208,61705.0,61704.0,0.0172938]
[1727890263629,0.19198317,61705.0,61704.0,0.0172938]
[1727890264062,0.17898317,61705.0,61704.0,0.0172938]
[1727890264273,0.21309102,61705.0,61704.0,0.0182938]
[1727890264745,0.22209102,61705.0,61704.0,0.0172938]
[1727890264944,0.19298317,61705.0,61704.0,0.0192938]
[1727890265152,0.20698317,61705.0,61704.0,0.0192938]
[1727890265577,0.20698317,61705.0,61704.0,0.0182938]
[1727890265578,0.19298317,61705.0,61704.0,0.0182938]
[1727890265784,0.03092217,61705.0,61704.0,0.0182938]
[1727890266000,0.02992217,61705.0,61704.0,0.0182938]
[1727890266196,0.19198317,61705.0,61704.0,0.0182938]
[1727890266421,0.04392217,61705.0,61704.0,0.0192938]
[1727890266629,0.02992217,61705.0,61704.0,0.0182938]
[1727890267809,0.01592217,61705.0,61704.0,0.0172938]
[1727890268021,0.02092217,61705.0,61704.0,0.0172938]
[1727890268228,0.04632752,61705.0,61704.0,0.18048051]
[1727890268432,0.06226094,61705.0,61704.0,0.18048051]
[1727890268646,0.04932752,61705.0,61704.0,0.18048051]
[1727890269053,0.12542752,61705.0,61704.0,0.18048051]
[1727890269269,0.12242752,61705.0,61704.0,0.18048051]
[1727890269486,0.14036216,61705.0,61704.0,0.18148051]
[1727890269688,0.13836216,61705.0,61704.0,0.18572184]
[1727890270111,0.13836216,61705.0,61704.0,0.18772184]
[1727890270112,0.12242752,61705.0,61704.0,0.18772184]
[1727890270323,0.13836216,61705.0,61704.0,0.18772184]
[1727890270528,0.13836216,61705.0,61704.0,0.1868519]
[1727890271362,0.12242752,61705.0,61704.0,0.1868519]
[1727890271973,0.12242752,61705.0,61704.0,0.02366519]
[1727890272605,0.28448852,61705.0,61704.0,0.01942386]
[1727890273013,0.12242752,61705.0,61704.0,0.01942386]
[1727890273216,0.28448852,61705.0,61704.0,0.01742386]
[1727890273638,0.25908317,61705.0,61704.0,0.01742386]
[1727890273855,0.25908317,61705.0,61704.0,0.17961057]
[1727890273856,0.09702217,61705.0,61704.0,0.17961057]
[1727890274076,0.09702217,61705.0,61704.0,0.36131057]
[1727890274294,0.26008317,61705.0,61704.0,0.01642386]
[1727890274718,0.25908317,61705.0,61704.0,0.01642386]
[1727890275147,0.25908317,61705.0,61704.0,0.01942386]
[1727890277210,0.28448798,61705.0,61704.0,0.01942386]
[1727890277469,0.12242698,61705.0,61704.0,0.34467457]
[1727890278417,0.10650481,61705.0,61704.0,0.44467457]
[1727890278630,0.10650481,61705.0,61704.0,0.51651746]
[1727890278831,0.0811,61705.0,61704.0,0.51718004]
[1727890279242,0.0811,61705.0,61704.0,0.44467457]
[1727890279665,0.0811,61705.0,61704.0,0.54046509]
[1727890279848,0.0811,61705.0,61704.0,0.61926509]
[1727890280751,0.0811,61705.0,61704.0,0.6293567]
[1727890280980,0.0811,61705.0,61704.0,0.53356618]
[1727890281205,0.00164,61717.0,61716.0,0.339332]
[1727890281438,0.00164,61717.0,61716.0,0.60251871]
[1727890281663,0.00164,61717.0,61716.0,0.61254566]
[1727890281883,0.00164,61717.0,61716.0,0.68515577]
[1727890282097,0.00084,61717.0,61716.0,0.68514803]
[1727890282345,0.00084,61717.0,61716.0,0.68516288]
[1727890282602,0.00084,61717.0,61716.0,0.6609544]
[1727890282782,0.00254,61717.0,61716.0,0.68516288]
[1727890283027,4e-05,61717.0,61716.0,0.68516288]
[1727890283244,0.02539932,61721.0,61718.0,0.162026]
[1727890283245,0.02523932,61721.0,61718.0,0.162026]
[1727890283454,0.02523932,61721.0,61719.0,0.16318671]
[1727890283680,0.24302321,61727.0,61719.0,0.17319751]
[1727890283903,0.01646974,61726.0,61719.0,0.17319751]
[1727890284142,0.24252321,61727.0,61719.0,0.17319751]
[1727890284143,0.24252321,61727.0,61720.0,0.1]
[1727890284387,0.00154,61728.0,61727.0,0.1]
[1727890284597,0.00124,61728.0,61727.0,0.50138971]
[1727890284818,0.00084,61728.0,61727.0,0.33938671]
[1727890285053,0.00074,61728.0,61727.0,0.34949609]
[1727890285270,0.00064,61728.0,61727.0,0.34949609]
[1727890285485,0.00034,61728.0,61727.0,0.34949609]
[1727890285708,0.00014,61728.0,61727.0,0.4482616]
[1727890285941,0.40493921,61738.0,61727.0,0.45047783]
[1727890286163,0.40453921,61738.0,61730.0,0.04838308]
[1727890286389,0.40443921,61738.0,61732.0,0.1]
[1727890286605,0.161976,61738.0,61733.0,0.16318671]
[1727890286854,0.323833,61742.0,61734.0,0.1]
[1727890287062,0.161972,61739.0,61735.0,0.16318671]
[1727890287541,0.24302321,61753.0,61738.0,0.18750694]
[1727890287542,0.323887,61750.0,61738.0,0.18750694]
[1727890287754,0.24302321,61753.0,61745.0,0.1]
[1727890287975,0.24302321,61753.0,61747.0,0.1]
[1727890288211,0.24302321,61753.0,61748.0,0.16318671]
[1727890288431,0.161942,61751.0,61748.0,0.17318304]
[1727890288652,0.161939,61752.0,61748.0,0.17318304]
[1727890288915,0.323868,61754.0,61748.0,0.17318304]
[1727890288916,0.013,61753.0,61748.0,0.17318304]
[1727890289148,0.013,61753.0,61749.0,0.1]
[1727890289366,0.013,61753.0,61752.0,0.36600694]
[1727890289367,0.018,61753.0,61752.0,0.36600694]
[1727890289581,0.018,61753.0,61752.0,0.52919365]
[1727890289794,0.018,61753.0,61752.0,0.35166152]
[1727890290030,0.179935,61753.0,61752.0,0.27316152]
[1727890290690,0.166935,61753.0,61752.0,0.27316152]
[1727890291114,0.161935,61753.0,61752.0,0.27316152]
[1727890292012,0.161935,61753.0,61752.0,0.27416152]
[1727890292433,0.161935,61753.0,61752.0,0.17316152]
[1727890292885,0.161935,61753.0,61752.0,0.16318671]
[1727890293346,0.161935,61753.0,61752.0,0.16418671]
[1727890293597,0.161935,61753.0,61752.0,0.001]
[1727890293826,0.161935,61753.0,61752.0,0.01097481]
[1727890294042,0.161935,61753.0,61752.0,0.001]
[1727890294043,0.21121457,61753.0,61752.0,0.001]
[1727890294284,0.21092399,61753.0,61752.0,0.001]
[1727890294509,0.21080812,61753.0,61752.0,0.001]
[1727890294736,0.04887312,61753.0,61737.0,0.00416129]
[1727890294969,0.161953,61746.0,61745.0,0.24302321]
[1727890295300,0.003,61753.0,61736.0,0.24302321]
[1727890295301,0.18750694,61745.0,61736.0,0.24302321]
[1727890295661,0.161975,61738.0,61736.0,0.24302321]
[1727890295910,0.161977,61737.0,61736.0,0.24302321]
[1727890296152,0.161977,61737.0,61733.0,0.00422575]
[1727890296420,0.161977,61737.0,61735.0,0.1]
[1727890296675,0.323907,61747.0,61736.0,0.16318671]
[1727890296921,0.24302321,61746.0,61742.0,0.1]
[1727890297145,0.24302321,61746.0,61739.0,0.0777]
[1727890297146,0.00164,61753.0,61748.0,0.1]
[1727890297367,0.00164,61753.0,61749.0,0.26318671]
[1727890297812,0.00164,61753.0,61749.0,0.26642527]
[1727890298030,0.00164,61753.0,61751.0,0.1]
[1727890298256,0.00164,61753.0,61752.0,0.26642511]
[1727890298898,0.00164,61753.0,61752.0,0.26318671]
[1727890299350,0.00264,61753.0,61752.0,0.26318671]
[1727890299781,0.00364,61753.0,61752.0,0.27218671]
[1727890300222,0.00364,61753.0,61752.0,0.28216152]
[1727890300439,0.00464,61753.0,61752.0,0.29016152]
[1727890301766,0.00364,61753.0,61752.0,0.28216152]
[1727890302183,0.00164,61753.0,61752.0,0.27316152]
[1727890302399,0.00164,61753.0,61752.0,0.44009952]
[1727890302604,0.00164,61753.0,61752.0,0.43509952]
[1727890303066,0.00264,61753.0,61752.0,0.44609952]
[1727890303283,0.00264,61753.0,61752.0,0.43909952]
[1727890303715,0.00264,61753.0,61752.0,0.43509952]
[1727890304153,0.00364,61753.0,61752.0,0.44109952]
[1727890304580,0.00364,61753.0,61752.0,0.44809952]
[1727890304795,0.00464,61753.0,61752.0,0.44809952]
[1727890305732,0.00464,61753.0,61752.0,0.28616152]
[1727890306670,0.00464,61753.0,61752.0,0.44809952]
[1727890308000,0.02271234,61753.0,61752.0,0.28616152]
[1727890308720,0.18464734,61753.0,61752.0,0.02297481]
[1727890308941,0.21362079,61753.0,61752.0,0.02297481]
[1727890309454,0.21362079,61753.0,61752.0,0.013]
[1727890310169,0.2319389,61753.0,61752.0,0.013]
[1727890310434,0.2319389,61753.0,61752.0,0.02297481]
[1727890310696,0.04118456,61753.0,61752.0,0.02297481]
[1727890310940,0.07030723,61753.0,61752.0,0.02297481]
[1727890311892,0.07030723,61753.0,61752.0,0.34809952]
[1727890312157,0.05196433,61753.0,61752.0,0.34809952]
[1727890312626,0.05196433,61753.0,61752.0,0.52789952]
[1727890314096,0.00464,61753.0,61752.0,0.52789952]
[1727890314391,0.0520654,61753.0,61752.0,0.52789952]
[1727890314648,0.07048379,61753.0,61752.0,0.52789952]
[1727890315661,0.07048379,61753.0,61752.0,0.71540646]
[1727890315662,0.0520654,61753.0,61752.0,0.71540646]
[1727890316073,0.02288054,61753.0,61752.0,0.71540646]
[1727890316513,0.23239702,61753.0,61752.0,0.02297481]
[1727890316724,0.13288255,61753.0,61752.0,0.02297481]
[1727890316939,0.13288255,61753.0,61752.0,0.013]
[1727890316940,0.1078436,61753.0,61752.0,0.013]
[1727890317148,0.2697786,61753.0,61752.0,0.013]
[1727890317357,0.22119499,61753.0,61752.0,0.007]
[1727890317573,0.24964204,61753.0,61752.0,0.007]
[1727890317781,0.30642093,61753.0,61752.0,0.009]
[1727890318232,0.30642093,61753.0,61742.0,0.00082]
[1727890318233,0.161949,61748.0,61742.0,0.162782]
[1727890318478,0.25593802,61747.0,61743.0,0.16742636]
[1727890318680,0.323882,61751.0,61743.0,0.32514671]
[1727890318681,0.09398702,61746.0,61743.0,0.32514671]
[1727890318882,0.07586374,61745.0,61743.0,0.32514671]
[1727890319098,0.0651461,61744.0,61743.0,0.16318671]
[1727890319525,0.0651461,61744.0,61743.0,0.26318671]
[1727890319954,0.0651461,61744.0,61743.0,0.26518671]
[1727890320371,0.2271051,61744.0,61743.0,0.26518671]
[1727890320600,0.22674787,61744.0,61743.0,0.01202324]
[1727890320884,0.25550981,61744.0,61743.0,0.01202324]
[1727890321093,0.27331606,61744.0,61743.0,0.002]
[1727890321321,0.161961,61743.0,61742.0,0.00082]
[1727890321532,0.27331806,61743.0,61742.0,0.00082]
[1727890323328,0.27731806,61743.0,61742.0,0.00082]
[1727890323549,0.27831806,61743.0,61742.0,0.00082]
[1727890323967,0.27731806,61743.0,61742.0,0.00082]
[1727890324186,0.27931806,61743.0,61742.0,0.00082]
[1727890324630,0.27531806,61743.0,61742.0,0.00082]